bitfinex-derivatives/quotes_BTCF0:USTF0_20250924
["timestamp","ask_amount","ask_price","bid_price","bid_amount"]
[1758703468216,0.39727,112610.0,112600.0,1.18174044]
[1758703468920,0.4860447,112610.0,112600.0,1.18174044]
[1758703469416,0.4860447,112610.0,112600.0,1.17064044]
[1758703469613,0.38355,112610.0,112600.0,1.18174044]
[1758703471215,0.38355,112610.0,112600.0,1.17574044]
[1758703471423,0.38355,112610.0,112600.0,1.18174044]
[1758703471720,0.38455,112610.0,112600.0,1.18174044]
[1758703471920,0.38455,112610.0,112600.0,1.17574044]
[1758703474710,0.4733246,112610.0,112600.0,1.17574044]
[1758703474912,0.4870446,112610.0,112600.0,1.17574044]
[1758703475112,0.4870446,112610.0,112600.0,1.16464044]
[1758703475621,0.4870446,112610.0,112600.0,1.16468044]
[1758703477222,0.4870446,112610.0,112600.0,0.9147025]
[1758703477528,0.4870446,112610.0,112600.0,1.16468044]
[1758703478323,0.4733246,112610.0,112600.0,1.17578044]
[1758703483328,0.38455,112610.0,112600.0,1.17578044]
[1758703484533,0.4733246,112610.0,112600.0,1.17578044]
[1758703484930,0.4733246,112610.0,112600.0,1.17590044]
[1758703485138,0.4870446,112610.0,112600.0,1.17590044]
[1758703486437,0.4870446,112610.0,112600.0,1.16480044]
[1758703487737,0.4870446,112610.0,112600.0,0.9148225]
[1758703488136,0.4870446,112610.0,112600.0,1.16480044]
[1758703491532,0.7870446,112610.0,112600.0,0.0224]
[1758703491740,1.43702254,112610.0,112600.0,0.82588]
[1758703492642,1.1870446,112610.0,112600.0,0.9146626]
[1758703494743,1.1870446,112610.0,112600.0,1.16464054]
[1758703495642,1.1870446,112610.0,112600.0,0.9146626]
[1758703496643,1.1870446,112610.0,112600.0,1.16464054]
[1758703498546,1.1870446,112610.0,112600.0,1.17574054]
[1758703498843,1.1870446,112610.0,112600.0,1.16464054]
[1758703499045,1.1870446,112610.0,112600.0,0.36116054]
[1758703499347,1.1870446,112610.0,112600.0,0.9145826]
[1758703501858,0.7733247,112610.0,112600.0,1.17566054]
[1758703503157,0.7861747,112610.0,112600.0,1.17566054]
[1758703504853,0.7861747,112610.0,112600.0,0.9145826]
[1758703505158,0.7861747,112610.0,112600.0,1.16456054]
[1758703505347,0.7861747,112610.0,112600.0,1.17566054]
[1758703506250,0.7861747,112610.0,112600.0,0.9256826]
[1758703506464,0.7861747,112610.0,112600.0,1.17566054]
[1758703506959,0.7861747,112610.0,112600.0,1.16456054]
[1758703507651,0.7861747,112610.0,112600.0,0.9145826]
[1758703507847,0.7861747,112610.0,112600.0,1.16456054]
[1758703509560,0.7861747,112610.0,112600.0,0.9145826]
[1758703509763,0.7861747,112610.0,112600.0,1.16456054]
[1758703510762,0.7861747,112610.0,112600.0,1.19564886]
[1758703511356,0.301,112610.0,112600.0,1.65635486]
[1758703513171,0.301,112610.0,112600.0,1.3752886]
[1758703513466,0.301,112610.0,112600.0,1.65635486]
[1758703513759,0.301,112610.0,112600.0,1.3752886]
[1758703513966,0.301,112610.0,112600.0,1.65635486]
[1758703515365,0.301,112610.0,112600.0,1.3752886]
[1758703515568,0.301,112610.0,112600.0,1.65635486]
[1758703516565,0.6618,112610.0,112600.0,1.29555486]
[1758703516765,0.301,112610.0,112600.0,1.29555486]
[1758703517161,0.301,112610.0,112600.0,1.65635486]
[1758703517370,0.301,112610.0,112600.0,1.29555486]
[1758703524169,0.301,112610.0,112600.0,1.45529019]
[1758703526472,0.301,112610.0,112600.0,1.29555486]
[1758703530270,0.301,112610.0,112600.0,1.65635486]
[1758703532074,0.301,112610.0,112600.0,2.43239955]
[1758703532279,0.24688685,112610.0,112600.0,2.15133329]
[1758703533678,0.24688685,112610.0,112600.0,1.79053329]
[1758703534075,0.33566185,112610.0,112600.0,1.79053329]
[1758703534378,0.33566185,112610.0,112600.0,1.95022796]
[1758703534774,0.69646185,112610.0,112600.0,1.86144536]
[1758703535177,0.69646185,112610.0,112600.0,1.95022836]
[1758703537576,0.69646185,112610.0,112600.0,1.79053369]
[1758703539474,0.69646185,112610.0,112600.0,1.39053369]
[1758703539977,0.69646185,112610.0,112600.0,1.30175069]
[1758703540184,0.69646185,112610.0,112600.0,1.39053369]
[1758703541485,0.69646185,112610.0,112600.0,1.10946743]
[1758703541678,0.69646185,112610.0,112600.0,1.39053369]
[1758703542086,0.71787185,112610.0,112600.0,0.58713369]
[1758703542285,0.71787185,112610.0,112600.0,1.39049369]
[1758703544891,0.69646185,112610.0,112600.0,1.39049369]
[1758703549996,0.69646185,112610.0,112600.0,1.30171069]
[1758703550295,0.73225185,112610.0,112600.0,0.40337226]
[1758703550488,0.73225185,112610.0,112600.0,1.20673226]
[1758703551585,0.71893185,112610.0,112600.0,1.20673226]
[1758703551796,0.71893185,112610.0,112600.0,1.36644977]
[1758703553397,0.71893185,112610.0,112600.0,1.20673226]
[1758703557794,1.41331811,112610.0,112600.0,0.0224]
[1758703557989,1.41331811,112610.0,112600.0,0.82572]
[1758703558189,1.41331811,112610.0,112600.0,0.98543751]
[1758703558395,1.41331811,112610.0,112600.0,1.26650377]
[1758703559094,1.41331811,112610.0,112600.0,1.10678626]
[1758703559997,1.41931811,112610.0,112600.0,1.10678626]
[1758703560396,1.42131811,112610.0,112600.0,0.82572]
[1758703560597,1.42131811,112610.0,112590.0,1.17739461]
[1758703560598,0.1255832,112600.0,112590.0,1.17739461]
[1758703560796,0.4863832,112600.0,112590.0,1.17739461]
[1758703560997,0.4863832,112600.0,112590.0,1.46956087]
[1758703561302,0.4863832,112600.0,112590.0,0.90742835]
[1758703561498,0.4863832,112600.0,112590.0,1.46956087]
[1758703561694,0.4873832,112600.0,112590.0,1.46956087]
[1758703563296,0.4873832,112600.0,112590.0,1.45846087]
[1758703564094,0.4873832,112600.0,112590.0,1.17739461]
[1758703564295,0.4873832,112600.0,112590.0,1.45846087]
[1758703564491,0.4873832,112600.0,112590.0,1.17739461]
[1758703564898,0.4873832,112600.0,112590.0,1.45846087]
[1758703566602,0.1265832,112600.0,112590.0,1.45846087]
[1758703566803,0.8481832,112600.0,112590.0,1.45846087]
[1758703567303,0.8481832,112600.0,112590.0,1.17739461]
[1758703568603,0.8481832,112600.0,112590.0,1.45846087]
[1758703568801,0.8481832,112600.0,112590.0,1.46956087]
[1758703569005,0.8344832,112600.0,112590.0,1.46956087]
[1758703572610,0.8344832,112600.0,112590.0,1.15730642]
[1758703574310,0.85006078,112600.0,112590.0,1.15730642]
[1758703574710,0.8344832,112600.0,112590.0,1.15730642]
[1758703575405,0.8344832,112600.0,112590.0,1.14620642]
[1758703575612,0.8481832,112600.0,112590.0,1.15730642]
[1758703575811,0.8344832,112600.0,112590.0,1.15730642]
[1758703578509,0.8471832,112600.0,112590.0,1.15730642]
[1758703579218,0.86237484,112600.0,112590.0,1.15730642]
[1758703579821,0.86237484,112600.0,112590.0,1.14620642]
[1758703581625,0.86237484,112600.0,112590.0,1.15730642]
[1758703581825,0.8471832,112600.0,112590.0,1.14620642]
[1758703582222,0.86230381,112600.0,112590.0,1.14620642]
[1758703583025,0.8471832,112600.0,112590.0,1.15730642]
[1758703585229,0.8471832,112600.0,112590.0,1.14620642]
[1758703585927,0.8344832,112600.0,112590.0,1.15730642]
[1758703586726,0.8471832,112600.0,112590.0,1.15730642]
[1758703587728,0.8471832,112600.0,112590.0,1.14620642]
[1758703590130,0.8471832,112600.0,112590.0,0.89632835]
[1758703590330,0.8471832,112600.0,112590.0,1.14620642]
[1758703599840,0.1255832,112600.0,112590.0,1.14620642]
[1758703600034,0.8471832,112600.0,112590.0,1.14620642]
[1758703601536,0.8471832,112600.0,112590.0,0.34284642]
[1758703601736,0.8471832,112600.0,112590.0,0.80448835]
[1758703602537,0.8471832,112600.0,112590.0,0.09296835]
[1758703602845,0.1247691,112580.0,112570.0,0.40061905]
[1758703603045,0.8463691,112580.0,112570.0,1.20393905]
[1758703603241,0.8463691,112580.0,112570.0,1.13303543]
[1758703603538,0.8463691,112580.0,112570.0,1.14720133]
[1758703603742,0.86069128,112580.0,112570.0,0.48945049]
[1758703603941,0.86069128,112580.0,112570.0,0.3895366]
[1758703604146,0.86069128,112580.0,112570.0,1.21839313]
[1758703604842,0.86069128,112580.0,112570.0,1.22939313]
[1758703605446,0.86069128,112580.0,112570.0,1.06465807]
[1758703605847,0.86069128,112580.0,112570.0,1.06665807]
[1758703606647,0.86069128,112580.0,112570.0,1.06565807]
[1758703606846,0.86069128,112580.0,112570.0,1.13602876]
[1758703608150,0.86069128,112580.0,112570.0,0.0297]
[1758703608442,0.1253426,112550.0,112540.0,0.18243992]
[1758703608640,0.4861426,112550.0,112540.0,0.98579992]
[1758703609147,0.4861826,112550.0,112540.0,0.98575992]
[1758703609344,0.4861826,112550.0,112540.0,0.15975992]
[1758703609345,1.93938067,112550.0,112540.0,0.15975992]
[1758703609539,1.93938067,112550.0,112540.0,2.486e-05]
[1758703609939,1.93938067,112550.0,112540.0,6e-08]
[1758703610746,0.1213665,112520.0,112510.0,0.71469227]
[1758703611048,0.8429665,112520.0,112510.0,0.81464667]
[1758703611250,0.84303136,112520.0,112510.0,0.72579227]
[1758703611451,0.84303136,112520.0,112510.0,0.71469227]
[1758703611846,0.84303136,112520.0,112510.0,0.45979807]
[1758703612739,0.85503136,112520.0,112510.0,0.45979807]
[1758703614040,0.85503136,112520.0,112510.0,0.46079807]
[1758703620153,0.85503136,112520.0,112510.0,0.54965237]
[1758703624250,0.85503136,112520.0,112510.0,0.54953237]
[1758703624558,0.85503136,112520.0,112510.0,0.54853237]
[1758703626858,0.84303136,112520.0,112510.0,0.54853237]
[1758703632053,0.82978136,112520.0,112510.0,1.05736424]
[1758703632555,0.84327136,112520.0,112510.0,0.64626424]
[1758703632759,0.84327136,112520.0,112510.0,0.54853237]
[1758703634562,0.84327136,112520.0,112510.0,0.58013661]
[1758703635961,0.84327136,112520.0,112510.0,0.39297661]
[1758703637162,0.84527136,112520.0,112510.0,0.39297661]
[1758703637864,0.85427136,112520.0,112510.0,0.39297661]
[1758703638665,0.76942486,112520.0,112510.0,0.39297661]
[1758703638865,0.76042486,112520.0,112510.0,0.39297661]
[1758703639067,0.77542486,112520.0,112510.0,0.39297661]
[1758703639265,0.86427136,112520.0,112510.0,0.39297661]
[1758703639572,0.85078136,112520.0,112510.0,0.40407661]
[1758703639872,0.85178136,112520.0,112510.0,0.40407661]
[1758703641962,0.01806486,112520.0,112510.0,1.27664485]
[1758703642267,0.04083486,112520.0,112510.0,0.99516254]
[1758703642859,0.40163486,112520.0,112510.0,0.99516254]
[1758703643061,0.37886486,112520.0,112510.0,1.27664485]
[1758703643562,0.01806486,112520.0,112510.0,1.27664485]
[1758703643769,0.38357,112530.0,112520.0,0.1221764]
[1758703643966,0.38357,112530.0,112520.0,1.48894102]
[1758703644869,0.38757,112530.0,112520.0,1.48894102]
[1758703645770,0.40857,112530.0,112520.0,1.48894102]
[1758703650573,0.40857,112530.0,112520.0,1.56886916]
[1758703651173,0.40857,112530.0,112520.0,1.48894102]
[1758703651362,0.40857,112530.0,112520.0,1.56886916]
[1758703653379,0.36691074,112530.0,112520.0,1.48894102]
[1758703654782,0.36691074,112530.0,112520.0,1.60090656]
[1758703657469,0.36691074,112530.0,112520.0,1.48894102]
[1758703659178,0.45574934,112530.0,112520.0,1.48894102]
[1758703659680,0.46956934,112530.0,112520.0,0.9148764]
[1758703659883,0.46956934,112530.0,112520.0,1.19635871]
[1758703660276,0.46956934,112530.0,112520.0,1.30832425]
[1758703663578,0.1504286,112530.0,112520.0,1.30832425]
[1758703663783,0.5112286,112530.0,112520.0,1.30832425]
[1758703664478,0.5112286,112530.0,112520.0,1.19635871]
[1758703666384,0.42239,112530.0,112520.0,1.48894102]
[1758703667680,0.06159,112530.0,112520.0,1.48894102]
[1758703667884,0.42239,112530.0,112520.0,1.48894102]
[1758703672484,0.42239,112530.0,112520.0,1.64867608]
[1758703675889,0.5112286,112530.0,112520.0,1.64867608]
[1758703677582,0.3858,112530.0,112520.0,2.24950862]
[1758703678090,0.3858,112530.0,112520.0,2.08977356]
[1758703679586,0.3858,112530.0,112520.0,1.52680894]
[1758703679788,0.3858,112530.0,112520.0,2.08977356]
[1758703680089,0.3858,112530.0,112520.0,2.08973356]
[1758703680891,0.3818,112530.0,112520.0,2.09073356]
[1758703681391,0.3818,112530.0,112520.0,1.97877016]
[1758703681589,0.3608,112530.0,112520.0,1.97877016]
[1758703681790,0.3608,112530.0,112520.0,1.98777016]
[1758703682788,0.3608,112530.0,112520.0,1.58777016]
[1758703684189,0.3608,112540.0,112520.0,1.67661656]
[1758703684383,0.38254,112540.0,112530.0,0.68483312]
[1758703685493,0.38354,112540.0,112530.0,0.68483312]
[1758703687192,0.38354,112540.0,112530.0,0.68783312]
[1758703688293,0.38354,112540.0,112530.0,0.70080199]
[1758703688692,0.02274,112540.0,112530.0,0.70080199]
[1758703694401,0.02274,112540.0,112530.0,0.86053705]
[1758703694696,0.02274,112540.0,112530.0,0.54767738]
[1758703699999,0.01207625,112540.0,112530.0,0.54767738]
[1758703700300,0.001,112540.0,112530.0,1.49025847]
[1758703700497,0.001,112540.0,112530.0,1.33052341]
[1758703701602,0.001,112540.0,112530.0,1.53762495]
[1758703702399,0.38323,112560.0,112550.0,0.1250628]
[1758703702705,0.39696,112570.0,112560.0,0.1250549]
[1758703702895,0.39696,112570.0,112560.0,0.48689911]
[1758703705008,0.39696,112570.0,112560.0,0.49940819]
[1758703705203,0.39696,112570.0,112560.0,0.48689911]
[1758703705402,0.40196,112570.0,112560.0,0.48689911]
[1758703705705,0.41596,112570.0,112560.0,0.48689911]
[1758703706006,0.40196,112570.0,112560.0,0.48689911]
[1758703706208,0.40196,112570.0,112560.0,0.49589911]
[1758703706708,0.39696,112570.0,112560.0,0.49589911]
[1758703706901,0.39696,112570.0,112560.0,0.49689911]
[1758703707809,0.39696,112570.0,112560.0,0.50894774]
[1758703708106,0.39696,112570.0,112560.0,0.49689911]
[1758703708402,0.39696,112570.0,112560.0,0.48789911]
[1758703708607,0.39696,112570.0,112560.0,0.49689911]
[1758703709108,0.39696,112570.0,112560.0,0.48789911]
[1758703709310,0.39696,112570.0,112560.0,0.49689911]
[1758703711022,0.39696,112570.0,112560.0,0.74700406]
[1758703711307,0.38323,112570.0,112560.0,0.49689911]
[1758703712214,0.38323,112570.0,112560.0,0.50906981]
[1758703713313,0.38323,112570.0,112560.0,0.49689911]
[1758703717118,0.38323,112570.0,112560.0,0.74700406]
[1758703717322,0.3608,112570.0,112560.0,0.6352648]
[1758703717708,0.38323,112570.0,112560.0,0.6352648]
[1758703718322,0.4857871,112570.0,112560.0,0.37134995]
[1758703718515,0.4857871,112570.0,112560.0,1.02731265]
[1758703718719,0.4857871,112570.0,112560.0,1.03631265]
[1758703719319,0.4857871,112570.0,112560.0,1.2864176]
[1758703720014,0.4857871,112570.0,112560.0,1.2794176]
[1758703723522,0.4857871,112570.0,112560.0,0.4534276]
[1758703723720,0.4857871,112570.0,112560.0,1.2570276]
[1758703728928,0.4857871,112570.0,112560.0,1.14551995]
[1758703730025,0.4857871,112570.0,112560.0,0.895415]
[1758703730330,0.4857871,112570.0,112560.0,1.16868995]
[1758703730631,0.4857871,112570.0,112560.0,0.918585]
[1758703730826,0.4857871,112570.0,112560.0,1.16868995]
[1758703731433,0.4857871,112570.0,112560.0,1.32832617]
[1758703731634,0.43164709,112570.0,112560.0,1.32832617]
[1758703732630,1.08175204,112570.0,112560.0,0.16263622]
[1758703733137,1.08175204,112570.0,112560.0,0.003]
[1758703734129,0.83164709,112570.0,112560.0,0.003]
[1758703734325,0.088815,112560.0,112550.0,1.30340087]
[1758703734535,0.462285,112560.0,112550.0,1.30340087]
[1758703735735,0.37347,112560.0,112550.0,1.31614087]
[1758703735942,0.02756,112570.0,112560.0,0.1247251]
[1758703736238,0.03823,112570.0,112560.0,0.47390617]
[1758703736438,0.39903,112570.0,112560.0,1.27874617]
[1758703737233,0.40103,112570.0,112560.0,1.27874617]
[1758703737834,0.40103,112570.0,112560.0,0.11181612]
[1758703737835,1.94510195,112570.0,112560.0,0.11181612]
[1758703738032,1.94210195,112570.0,112560.0,0.11181612]
[1758703738839,1.94510195,112570.0,112560.0,0.11181612]
[1758703741347,0.124735,112560.0,112550.0,0.11181612]
[1758703741547,0.73563995,112560.0,112550.0,0.11181612]
[1758703741841,1.13563995,112560.0,112550.0,0.11181612]
[1758703742534,0.885535,112560.0,112550.0,0.11581612]
[1758703742847,1.13563995,112560.0,112550.0,0.22619902]
[1758703743148,0.885535,112560.0,112550.0,0.22619902]
[1758703743339,1.13563995,112560.0,112550.0,0.1143829]
[1758703743535,1.13563995,112560.0,112550.0,0.22616679]
[1758703743741,1.13563995,112560.0,112550.0,0.11578389]
[1758703754344,1.291695,112560.0,112550.0,0.22616679]
[1758703755355,1.291695,112560.0,112550.0,0.87627174]
[1758703755356,0.485535,112560.0,112550.0,0.87627174]
[1758703755654,0.485535,112560.0,112550.0,0.88949174]
[1758703755854,0.485535,112560.0,112550.0,0.87627174]
[1758703756054,0.485535,112560.0,112550.0,0.62616679]
[1758703756559,0.485535,112560.0,112550.0,0.90751169]
[1758703757553,0.485535,112560.0,112550.0,0.62616679]
[1758703757754,0.485535,112560.0,112550.0,0.90751169]
[1758703758257,0.485535,112560.0,112550.0,0.7957278]
[1758703759462,0.485535,112560.0,112550.0,0.9074337]
[1758703760656,0.4718853,112560.0,112550.0,0.9205637]
[1758703761356,0.38307,112560.0,112550.0,0.8088578]
[1758703762252,0.4718853,112560.0,112550.0,0.8088578]
[1758703762853,0.4718853,112560.0,112550.0,1.6147778]
[1758703763054,0.4718853,112560.0,112550.0,1.72652587]
[1758703763358,0.4718853,112560.0,112550.0,1.6147778]
[1758703763656,0.38307,112560.0,112550.0,1.6147778]
[1758703764655,0.38307,112560.0,112550.0,1.72654321]
[1758703764859,0.4718853,112560.0,112550.0,1.72654321]
[1758703765860,0.38307,112560.0,112550.0,1.72654321]
[1758703766059,0.02227,112560.0,112550.0,2.00788811]
[1758703766260,0.02227,112560.0,112550.0,1.6147778]
[1758703766462,0.02227,112560.0,112550.0,1.8961227]
[1758703766659,0.02227,112560.0,112550.0,2.05575892]
[1758703767461,0.02227,112560.0,112550.0,1.8961227]
[1758703768063,0.02227,112560.0,112550.0,2.05579891]
[1758703769870,0.02227,112560.0,112550.0,1.77445401]
[1758703770370,0.4851631,112570.0,112560.0,0.1099752]
[1758703770570,0.4724931,112570.0,112560.0,0.685795]
[1758703772363,0.4744931,112570.0,112560.0,0.685795]
[1758703772764,0.4794931,112570.0,112560.0,0.685795]
[1758703773169,0.39068,112570.0,112560.0,0.685795]
[1758703773372,0.3678,112570.0,112560.0,1.085795]
[1758703773576,0.007,112570.0,112560.0,1.085795]
[1758703779177,0.007,112570.0,112560.0,1.09753349]
[1758703779578,0.007,112570.0,112560.0,0.69753349]
[1758703779777,0.02988,112570.0,112560.0,0.69753349]
[1758703780472,0.1186873,112570.0,112560.0,0.69753349]
[1758703782993,0.1186873,112570.0,112560.0,0.1231052]
[1758703783187,0.1186873,112570.0,112560.0,0.685795]
[1758703783492,0.1186873,112570.0,112560.0,0.84547121]
[1758703784093,0.02988,112570.0,112560.0,0.84547121]
[1758703785093,0.007,112570.0,112560.0,1.20627121]
[1758703785788,0.007,112570.0,112560.0,1.046595]
[1758703786392,0.007,112570.0,112560.0,1.20611938]
[1758703786692,0.007,112570.0,112560.0,1.2175591]
[1758703789396,0.007,112570.0,112560.0,1.80750004]
[1758703789598,0.007,112570.0,112560.0,1.64797566]
[1758703795400,0.007,112570.0,112560.0,1.80750973]
[1758703796301,0.007,112570.0,112560.0,1.64797566]
[1758703801901,0.007,112570.0,112560.0,2.00877566]
[1758703802604,0.007,112570.0,112560.0,2.16830973]
[1758703803407,0.007,112570.0,112560.0,2.00877566]
[1758703804413,0.005,112570.0,112560.0,2.00877566]
[1758703806105,0.005,112570.0,112560.0,2.16824273]
[1758703806305,0.1100421,112590.0,112580.0,0.1241595]
[1758703806502,0.1100421,112590.0,112580.0,1.32237101]
[1758703806706,0.02125,112590.0,112580.0,1.32237101]
[1758703806903,0.02125,112590.0,112580.0,1.60371591]
[1758703808010,0.03525,112590.0,112580.0,1.60371591]
[1758703808718,0.1240418,112590.0,112580.0,1.32237101]
[1758703808915,0.1240418,112590.0,112580.0,1.2107444]
[1758703809214,0.1240418,112590.0,112580.0,1.28329679]
[1758703809809,0.03525,112590.0,112580.0,1.28329679]
[1758703811913,0.03525,112590.0,112580.0,1.56464169]
[1758703812513,0.014,112590.0,112580.0,2.22357027]
[1758703812914,0.014,112590.0,112580.0,2.11194366]
[1758703814718,0.014,112590.0,112580.0,2.3190452]
[1758703815125,0.003,112590.0,112580.0,2.3370452]
[1758703815816,0.71771295,112610.0,112600.0,0.1241438]
[1758703816023,0.71771295,112610.0,112600.0,1.2104087]
[1758703816316,0.26813685,112610.0,112600.0,1.4917536]
[1758703816520,0.24688685,112610.0,112600.0,1.26765623]
[1758703816718,0.24688685,112610.0,112600.0,1.51742689]
[1758703817220,0.24688685,112610.0,112600.0,1.51842689]
[1758703817619,0.24688685,112610.0,112600.0,1.78928736]
[1758703818123,0.24688685,112610.0,112600.0,1.5455167]
[1758703818319,0.24688685,112610.0,112600.0,1.38612866]
[1758703818519,0.24688685,112610.0,112600.0,1.63589932]
[1758703819519,0.24688685,112610.0,112600.0,1.6477233]
[1758703819718,0.24688685,112610.0,112600.0,1.75875264]
[1758703821419,0.24688685,112610.0,112600.0,2.0085233]
[1758703822125,0.24688685,112610.0,112600.0,1.74692866]
[1758703825524,0.24688685,112610.0,112600.0,1.99669932]
[1758703825823,0.24688685,112610.0,112600.0,2.09403731]
[1758703826029,0.24688685,112610.0,112600.0,1.98256488]
[1758703835633,0.4622477,112640.0,112630.0,0.0887604]
[1758703835839,0.38274,112640.0,112630.0,1.17798106]
[1758703836031,0.4714925,112640.0,112630.0,1.17798106]
[1758703836230,0.49630803,112640.0,112630.0,1.16526106]
[1758703836430,0.49630803,112640.0,112630.0,0.9154904]
[1758703837132,0.50030803,112640.0,112630.0,0.9154904]
[1758703837333,0.51130803,112640.0,112630.0,0.9154904]
[1758703837734,1.16107869,112640.0,112630.0,0.1105702]
[1758703837934,1.16107869,112640.0,112630.0,0.9154102]
[1758703839139,0.91130803,112640.0,112630.0,0.9154102]
[1758703839438,0.51130803,112640.0,112630.0,0.9154102]
[1758703840344,0.51130803,112640.0,112630.0,0.1105702]
[1758703844549,0.51130803,112640.0,112630.0,0.02181]
[1758703844939,0.1243781,112620.0,112610.0,0.22195755]
[1758703845248,0.088776,112610.0,112600.0,0.22196045]
[1758703845452,0.485186,112610.0,112600.0,1.02700045]
[1758703845643,0.485186,112610.0,112600.0,0.9156284]
[1758703846550,0.485186,112610.0,112600.0,0.9216284]
[1758703847440,0.485186,112610.0,112600.0,0.1165884]
[1758703847646,0.485186,112610.0,112600.0,1.03316986]
[1758703847842,1.93987666,112610.0,112600.0,0.11766146]
[1758703848152,1.93987666,112610.0,112600.0,0.006]
[1758703848454,1.93987666,112610.0,112600.0,0.007]
[1758703849446,1.89923704,112610.0,112600.0,0.006]
[1758703849647,0.1237118,112590.0,112580.0,0.11166146]
[1758703849848,1.6504718,112590.0,112580.0,0.11166146]
[1758703850050,0.1237197,112580.0,112570.0,0.95481376]
[1758703850355,0.4845197,112580.0,112570.0,0.95481376]
[1758703850758,0.4845197,112580.0,112570.0,1.20458442]
[1758703850759,0.03492,112580.0,112570.0,1.20458442]
[1758703851056,0.0219,112580.0,112570.0,1.21720442]
[1758703851258,0.0219,112580.0,112570.0,1.21706378]
[1758703851756,0.0219,112580.0,112570.0,1.10554296]
[1758703852756,0.0219,112580.0,112570.0,1.11754296]
[1758703853150,0.0219,112580.0,112570.0,1.11854296]
[1758703853353,0.0219,112580.0,112570.0,1.11254296]
[1758703853656,0.0219,112590.0,112580.0,0.1225296]
[1758703853858,0.0219,112590.0,112580.0,0.48375142]
[1758703855458,0.0229,112590.0,112580.0,0.48375142]
[1758703856054,0.73528236,112590.0,112580.0,0.11145116]
[1758703856256,0.1237196,112580.0,112570.0,0.26930104]
[1758703856559,0.1237196,112580.0,112570.0,0.22136416]
[1758703856560,0.39572,112580.0,112570.0,0.22136416]
[1758703856746,0.03492,112580.0,112570.0,0.47113482]
[1758703856947,0.40671748,112580.0,112570.0,0.47109536]
[1758703857155,0.39572,112580.0,112570.0,0.47109536]
[1758703859258,0.39572,112580.0,112570.0,0.47709536]
[1758703859654,0.03492,112580.0,112570.0,0.47709536]
[1758703859859,0.03492,112580.0,112570.0,0.38002366]
[1758703860758,0.39572,112580.0,112570.0,0.38002366]
[1758703861351,0.39572,112580.0,112570.0,0.36668366]
[1758703861552,0.0219,112580.0,112570.0,0.38002366]
[1758703861751,0.0219,112580.0,112570.0,0.74082366]
[1758703862660,0.03453,112580.0,112570.0,0.74082366]
[1758703863156,0.03453,112580.0,112570.0,0.477713]
[1758703863461,0.03453,112580.0,112570.0,1.53380366]
[1758703864161,0.03453,112580.0,112570.0,1.17300366]
[1758703870763,0.39533,112580.0,112570.0,1.17300366]
[1758703872664,0.39533,112580.0,112570.0,1.28441536]
[1758703873466,0.39533,112580.0,112570.0,1.0346447]
[1758703873764,0.39533,112580.0,112570.0,1.28441536]
[1758703873960,0.39533,112580.0,112570.0,1.0346447]
[1758703874160,0.39533,112580.0,112570.0,1.28441536]
[1758703875561,1.13390096,112580.0,112570.0,0.1184117]
[1758703875970,1.13390096,112580.0,112570.0,0.007]
[1758703876564,1.94038096,112580.0,112570.0,0.007]
[1758703876765,1.94038096,112580.0,112570.0,0.006]
[1758703876969,1.94038096,112580.0,112570.0,0.007]
[1758703877766,1.94138096,112580.0,112570.0,0.006]
[1758703878567,1.97291758,112580.0,112570.0,0.006]
[1758703878766,1.97291758,112580.0,112560.0,0.37012188]
[1758703878964,0.39606,112570.0,112560.0,0.39293188]
[1758703880066,0.39606,112570.0,112560.0,0.39993188]
[1758703880767,0.39606,112570.0,112560.0,0.39893188]
[1758703880967,0.39606,112570.0,112560.0,0.39993188]
[1758703881871,0.67736728,112570.0,112560.0,0.39993188]
[1758703882674,0.39606,112570.0,112560.0,0.39993188]
[1758703885779,0.76617538,112570.0,112560.0,0.31111728]
[1758703885982,0.76617538,112570.0,112560.0,0.39993328]
[1758703886778,0.39606,112570.0,112560.0,0.39993328]
[1758703887576,0.38277,112570.0,112560.0,0.69461056]
[1758703888078,0.38277,112570.0,112560.0,0.41330328]
[1758703888278,0.39606,112570.0,112560.0,0.41330328]
[1758703888578,0.39606,112570.0,112560.0,0.39993328]
[1758703889284,0.39606,112570.0,112560.0,0.118626]
[1758703889474,0.39606,112570.0,112560.0,0.39993328]
[1758703890282,0.39606,112570.0,112560.0,0.68124056]
[1758703891076,0.02197,112570.0,112560.0,2.26185056]
[1758703891277,0.02197,112580.0,112570.0,0.1234883]
[1758703891480,0.02197,112580.0,112570.0,0.40479558]
[1758703892273,0.02197,112580.0,112570.0,0.80479558]
[1758703893284,0.02297,112580.0,112570.0,0.80479558]
[1758703899586,0.02297,112580.0,112570.0,0.40479558]
[1758703901088,0.001,112580.0,112570.0,1.16559558]
[1758703901393,0.001,112580.0,112570.0,1.26378041]
[1758703901788,0.001,112580.0,112570.0,0.86378041]
[1758703902696,0.001,112580.0,112570.0,0.97519211]
[1758703906094,0.001,112580.0,112570.0,0.86378041]
[1758703906396,0.001,112580.0,112570.0,1.46418683]
[1758703906785,0.001,112580.0,112570.0,1.35261007]
[1758703908592,0.37382,112600.0,112590.0,0.0887923]
[1758703908593,0.34567449,112600.0,112590.0,0.0887923]
[1758703908798,0.36819449,112600.0,112590.0,0.4633183]
[1758703909196,0.36819449,112600.0,112590.0,0.4761683]
[1758703909698,0.37219449,112600.0,112590.0,0.75747558]
[1758703909897,0.37219449,112600.0,112590.0,0.4761683]
[1758703911003,0.38319449,112600.0,112590.0,0.4761683]
[1758703912499,0.38319449,112600.0,112590.0,0.75747558]
[1758703912700,0.03752,112600.0,112590.0,0.76781643]
[1758703912904,0.66462728,112610.0,112600.0,0.1228046]
[1758703913205,0.66462728,112610.0,112600.0,0.51566173]
[1758703913606,0.76311398,112610.0,112600.0,0.42687713]
[1758703914096,0.67433728,112610.0,112600.0,0.51566173]
[1758703914298,0.69133728,112610.0,112600.0,0.51566173]
[1758703916507,0.69433728,112610.0,112600.0,0.51566173]
[1758703916810,0.78311408,112610.0,112600.0,0.51566173]
[1758703917708,0.78311408,112610.0,112600.0,0.23435445]
[1758703917910,0.78311408,112610.0,112600.0,0.51566173]
[1758703919004,0.78311408,112610.0,112600.0,0.14556985]
[1758703919209,1.18311408,112610.0,112600.0,0.11154985]
[1758703919414,0.01287,112600.0,112590.0,1.2480627]
[1758703919607,0.37367,112600.0,112590.0,1.2612727]
[1758703919910,0.65497728,112600.0,112590.0,1.37282255]
[1758703920412,0.37367,112600.0,112590.0,1.37282255]
[1758703920610,0.78286408,112610.0,112600.0,0.1119947]
[1758703920810,0.77986408,112610.0,112600.0,0.1119947]
[1758703921411,0.77986408,112610.0,112600.0,0.39330198]
[1758703922011,0.76286408,112610.0,112600.0,0.39330198]
[1758703922712,0.76486408,112610.0,112600.0,0.39330198]